[Event "Titled Tuesday Blitz August 1 Late 2023"]
[White "Michalczak, Thomas"]
[Black "Karaoglan, Doruk"]
[WhiteFideId "4622634"]
[BlackFideId "6390927"]
[WhiteElo "2521"]
[BlackElo "2633"]
[Result "0-1"]
[Round "9"]
[TimeControl "180+1"]
[Date "2023.08.01"]
[WhiteClock "0:00:26"]
[BlackClock "0:00:31"]
[Board "37"]

1. e4 {[%clk 0:03:00]}  c5 {[%clk 0:02:59]} 2. c3 {[%clk 0:03:01]}  Nf6 {[%clk 0:02:59]} 3. e5 {[%clk 0:03:01]}  Nd5 {[%clk 0:03:00]} 4. Nf3 {[%clk 0:03:02]}  e6 {[%clk 0:03:00]} 5. d4 {[%clk 0:03:02]}  cxd4 {[%clk 0:03:00]} 6. cxd4 {[%clk 0:03:03]}  b6 {[%clk 0:03:01]} 7. Nc3 {[%clk 0:02:59]}  Nxc3 {[%clk 0:03:00]} 8. bxc3 {[%clk 0:03:00]}  Qc7 {[%clk 0:03:01]} 9. Bb5 {[%clk 0:02:56]}  a6 {[%clk 0:02:35]} 10. Ba4 {[%clk 0:02:55]}  b5 {[%clk 0:02:35]} 11. Bb3 {[%clk 0:02:55]}  Bb7 {[%clk 0:02:36]} 12. O-O {[%clk 0:02:54]}  d6 {[%clk 0:02:36]} 13. Ng5 {[%clk 0:02:45]}  d5 {[%clk 0:02:01]} 14. Qh5 {[%clk 0:02:39]}  g6 {[%clk 0:02:01]} 15. Qf3 {[%clk 0:02:39]}  Bg7 {[%clk 0:01:56]} 16. Ba3 {[%clk 0:02:35]}  h6 {[%clk 0:01:55]} 17. Bd6 {[%clk 0:02:34]}  Qd7 {[%clk 0:01:55]} 18. Nh3 {[%clk 0:02:27]}  Nc6 {[%clk 0:01:51]} 19. a4 {[%clk 0:02:25]}  Ne7 {[%clk 0:01:37]} 20. axb5 {[%clk 0:02:24]}  axb5 {[%clk 0:01:38]} 21. Rxa8+ {[%clk 0:02:21]}  Bxa8 {[%clk 0:01:38]} 22. Nf4 {[%clk 0:01:57]}  O-O {[%clk 0:01:38]} 23. Nd3 {[%clk 0:01:57]}  Rc8 {[%clk 0:01:33]} 24. Nc5 {[%clk 0:01:49]}  Qa7 {[%clk 0:01:33]} 25. g4 {[%clk 0:01:37]}  Nc6 {[%clk 0:01:31]} 26. h4 {[%clk 0:01:33]}  b4 {[%clk 0:01:21]} 27. h5 {[%clk 0:01:30]}  bxc3 {[%clk 0:01:18]} 28. hxg6 {[%clk 0:01:30]}  Nxd4 {[%clk 0:01:16]} 29. gxf7+ {[%clk 0:01:25]}  Qxf7 {[%clk 0:01:16]} 30. Qxf7+ {[%clk 0:01:18]}  Kxf7 {[%clk 0:01:16]} 31. Ba4 {[%clk 0:01:17]}  Bxe5 {[%clk 0:01:09]} 32. Bxe5 {[%clk 0:01:15]}  Nf3+ {[%clk 0:01:09]} 33. Kg2 {[%clk 0:01:07]}  Nxe5 {[%clk 0:01:10]} 34. Nb3 {[%clk 0:00:56]}  d4+ {[%clk 0:01:10]} 35. Kg3 {[%clk 0:00:56]}  d3 {[%clk 0:01:10]} 36. f4 {[%clk 0:00:56]}  Nc4 {[%clk 0:01:06]} 37. f5 {[%clk 0:00:50]}  e5 {[%clk 0:01:06]} 38. Bb5 {[%clk 0:00:41]}  e4 {[%clk 0:01:00]} 39. Kf4 {[%clk 0:00:40]}  Bd5 {[%clk 0:00:32]} 40. Bd7 {[%clk 0:00:38]}  Rc7 {[%clk 0:00:31]} 41. Be6+ {[%clk 0:00:35]}  Bxe6 {[%clk 0:00:32]} 42. fxe6+ {[%clk 0:00:36]}  Kxe6 {[%clk 0:00:32]} 43. Kxe4 {[%clk 0:00:36]}  d2 {[%clk 0:00:22]} 44. Nd4+ {[%clk 0:00:34]}  Kd7 {[%clk 0:00:22]} 45. Rf7+ {[%clk 0:00:32]}  Kc8 {[%clk 0:00:21]} 46. Rf8+ {[%clk 0:00:30]}  Kb7 {[%clk 0:00:20]} 47. Rf1 {[%clk 0:00:26]}  Nb2 {[%clk 0:00:21]} 48. Nb5 {[%clk 0:00:16]}  d1=Q {[%clk 0:00:20]} 49. Rxd1 {[%clk 0:00:17]}  Nxd1 {[%clk 0:00:21]} 50. Nxc7 {[%clk 0:00:17]}  Kxc7 {[%clk 0:00:22]} 51. Kd3 {[%clk 0:00:18]}  Nf2+ {[%clk 0:00:23]} 52. Kxc3 {[%clk 0:00:18]}  Nxg4 {[%clk 0:00:24]} 53. Kd4 {[%clk 0:00:19]}  Nf6 {[%clk 0:00:24]} 54. Ke5 {[%clk 0:00:19]}  h5 {[%clk 0:00:25]} 55. Kf5 {[%clk 0:00:19]}  Kd6 {[%clk 0:00:26]} 56. Kg5 {[%clk 0:00:19]}  Ke5 {[%clk 0:00:26]} 57. Kh4 {[%clk 0:00:20]}  Kf4 {[%clk 0:00:27]} 58. Kh3 {[%clk 0:00:21]}  Kg5 {[%clk 0:00:27]} 59. Kh2 {[%clk 0:00:22]}  h4 {[%clk 0:00:27]} 60. Kh1 {[%clk 0:00:23]}  Kg4 {[%clk 0:00:28]} 61. Kg1 {[%clk 0:00:24]}  Kg3 {[%clk 0:00:28]} 62. Kh1 {[%clk 0:00:25]}  Ng4 {[%clk 0:00:29]} 63. Kg1 {[%clk 0:00:25]}  Nf2 {[%clk 0:00:29]} 64. Kf1 {[%clk 0:00:26]}  h3 {[%clk 0:00:29]} 65. Kg1 {[%clk 0:00:25]}  h2+ {[%clk 0:00:30]} 66. Kf1 {[%clk 0:00:26]}  h1=Q+ {[%clk 0:00:30]} 67. Ke2 {[%clk 0:00:27]}  Qf3+ {[%clk 0:00:31]} 68. Kd2 {[%clk 0:00:27]}  Ne4+ {[%clk 0:00:31]} 69. Kc2 {[%clk 0:00:26]}  Qc3+ {[%clk 0:00:31]} 0-1


[Site "https://www.chess.com"]

[Event "Titled Tuesday Blitz August 1 Late 2023"]
[White "Wu, Rochelle"]
[Black "Willy, Stephen"]
[WhiteFideId "30908132"]
[BlackFideId "30981468"]
[WhiteElo "2625"]
[BlackElo "2499"]
[Result "0-1"]
[Round "9"]
[TimeControl "180+1"]
[Date "2023.08.01"]
[WhiteClock "0:00:02"]
[BlackClock "0:00:09"]
[Board "39"]

1. d4 {[%clk 0:02:58]}  d5 {[%clk 0:02:57]} 2. c4 {[%clk 0:02:58]}  e6 {[%clk 0:02:57]} 3. Nc3 {[%clk 0:02:57]}  Be7 {[%clk 0:02:55]} 4. cxd5 {[%clk 0:02:57]}  exd5 {[%clk 0:02:56]} 5. Bf4 {[%clk 0:02:57]}  c6 {[%clk 0:02:53]} 6. e3 {[%clk 0:02:57]}  Nf6 {[%clk 0:02:52]} 7. Bd3 {[%clk 0:02:57]}  O-O {[%clk 0:02:48]} 8. Nge2 {[%clk 0:02:56]}  h6 {[%clk 0:02:46]} 9. O-O {[%clk 0:02:55]}  Nh5 {[%clk 0:02:46]} 10. Be5 {[%clk 0:02:55]}  Nd7 {[%clk 0:02:42]} 11. Qc2 {[%clk 0:02:51]}  Nxe5 {[%clk 0:02:25]} 12. dxe5 {[%clk 0:02:52]}  g6 {[%clk 0:02:26]} 13. e4 {[%clk 0:02:32]}  d4 {[%clk 0:02:20]} 14. Na4 {[%clk 0:02:25]}  Ng7 {[%clk 0:02:05]} 15. Rad1 {[%clk 0:02:14]}  Ne6 {[%clk 0:01:48]} 16. Bc4 {[%clk 0:02:09]}  b6 {[%clk 0:01:08]} 17. Bxe6 {[%clk 0:02:02]}  Bxe6 {[%clk 0:01:07]} 18. Nxd4 {[%clk 0:02:02]}  Qc8 {[%clk 0:00:54]} 19. f4 {[%clk 0:01:30]}  c5 {[%clk 0:00:49]} 20. Nb5 {[%clk 0:01:21]}  Rd8 {[%clk 0:00:45]} 21. Rxd8+ {[%clk 0:01:09]}  Qxd8 {[%clk 0:00:43]} 22. f5 {[%clk 0:01:07]}  Bd7 {[%clk 0:00:40]} 23. Nac3 {[%clk 0:00:42]}  a6 {[%clk 0:00:30]} 24. Na3 {[%clk 0:00:26]}  b5 {[%clk 0:00:30]} 25. Nd5 {[%clk 0:00:20]}  Rc8 {[%clk 0:00:28]} 26. fxg6 {[%clk 0:00:18]}  fxg6 {[%clk 0:00:28]} 27. Qf2 {[%clk 0:00:18]}  Be6 {[%clk 0:00:27]} 28. Qg3 {[%clk 0:00:18]}  Kg7 {[%clk 0:00:24]} 29. Nf4 {[%clk 0:00:17]}  Bf7 {[%clk 0:00:19]} 30. e6 {[%clk 0:00:17]}  Be8 {[%clk 0:00:20]} 31. Nd5 {[%clk 0:00:18]}  Qd6 {[%clk 0:00:17]} 32. Qf3 {[%clk 0:00:17]}  Qxe6 {[%clk 0:00:16]} 33. Nc2 {[%clk 0:00:16]}  c4 {[%clk 0:00:14]} 34. Nd4 {[%clk 0:00:16]}  Bc5 {[%clk 0:00:14]} 35. Qf2 {[%clk 0:00:14]}  Qe5 {[%clk 0:00:13]} 36. Rd1 {[%clk 0:00:13]}  Bf7 {[%clk 0:00:12]} 37. Kh1 {[%clk 0:00:13]}  Qxe4 {[%clk 0:00:11]} 38. Nc3 {[%clk 0:00:10]}  Qe5 {[%clk 0:00:10]} 39. Rf1 {[%clk 0:00:10]}  Rf8 {[%clk 0:00:10]} 40. Nce2 {[%clk 0:00:02]}  Bd5 {[%clk 0:00:09]} 0-1


[Site "https://www.chess.com"]

[Event "Titled Tuesday Blitz August 1 Late 2023"]
[White "Salazar Farias, Luis German"]
[Black "brm72"]
[WhiteFideId "3902170"]
[WhiteElo "2497"]
[BlackElo "2615"]
[Result "0-1"]
[Round "9"]
[TimeControl "180+1"]
[Date "2023.08.01"]
[WhiteClock "0:00:00"]
[BlackClock "0:01:09"]
[Board "40"]

1. d4 {[%clk 0:02:53]}  Nf6 {[%clk 0:02:59]} 2. c4 {[%clk 0:02:53]}  g6 {[%clk 0:02:59]} 3. Nc3 {[%clk 0:02:52]}  d5 {[%clk 0:02:59]} 4. cxd5 {[%clk 0:02:53]}  Nxd5 {[%clk 0:03:00]} 5. e4 {[%clk 0:02:53]}  Nxc3 {[%clk 0:03:00]} 6. bxc3 {[%clk 0:02:54]}  Bg7 {[%clk 0:02:59]} 7. Bc4 {[%clk 0:02:46]}  c5 {[%clk 0:02:58]} 8. Ne2 {[%clk 0:02:39]}  O-O {[%clk 0:02:57]} 9. O-O {[%clk 0:02:25]}  Nc6 {[%clk 0:02:51]} 10. Be3 {[%clk 0:02:21]}  Qc7 {[%clk 0:02:49]} 11. Rc1 {[%clk 0:02:12]}  b6 {[%clk 0:02:49]} 12. h4 {[%clk 0:02:09]}  Bb7 {[%clk 0:02:47]} 13. h5 {[%clk 0:02:06]}  Rad8 {[%clk 0:02:46]} 14. h6 {[%clk 0:02:06]}  Bh8 {[%clk 0:02:41]} 15. Nf4 {[%clk 0:02:02]}  e6 {[%clk 0:02:02]} 16. Nxe6 {[%clk 0:01:02]}  fxe6 {[%clk 0:01:56]} 17. Bxe6+ {[%clk 0:01:02]}  Rf7 {[%clk 0:01:56]} 18. d5 {[%clk 0:01:03]}  Na5 {[%clk 0:01:47]} 19. c4 {[%clk 0:00:54]}  Bc8 {[%clk 0:01:45]} 20. Bxf7+ {[%clk 0:00:49]}  Qxf7 {[%clk 0:01:46]} 21. f4 {[%clk 0:00:45]}  Ba6 {[%clk 0:01:27]} 22. Qd3 {[%clk 0:00:20]}  Qd7 {[%clk 0:01:25]} 23. f5 {[%clk 0:00:14]}  Re8 {[%clk 0:01:23]} 24. fxg6 {[%clk 0:00:14]}  hxg6 {[%clk 0:01:23]} 25. e5 {[%clk 0:00:14]}  Kh7 {[%clk 0:01:19]} 26. Qe4 {[%clk 0:00:03]}  Rxe5 {[%clk 0:01:15]} 27. Qf3 {[%clk 0:00:03]}  Rxe3 {[%clk 0:01:10]} 28. Qf7+ {[%clk 0:00:02]}  Qxf7 {[%clk 0:01:09]} 29. Rxf7+ {[%clk 0:00:02]}  Kxh6 {[%clk 0:01:10]} 30. Rxa7 {[%clk 0:00:00]}  Bxc4 {[%clk 0:01:09]} 0-1


[Site "https://www.chess.com"]

[Event "Titled Tuesday Blitz August 1 Late 2023"]
[White "Liu, Casper"]
[Black "Ozates, Tuna"]
[WhiteFideId "1454153"]
[BlackFideId "6354521"]
[WhiteElo "2495"]
[BlackElo "2612"]
[Result "0-1"]
[Round "9"]
[TimeControl "180+1"]
[Date "2023.08.01"]
[WhiteClock "0:00:00"]
[BlackClock "0:00:32"]
[Board "41"]

1. e4 {[%clk 0:00:47]}  c5 {[%clk 0:02:55]} 2. d4 {[%clk 0:00:48]}  cxd4 {[%clk 0:02:55]} 3. Qxd4 {[%clk 0:00:49]}  Nc6 {[%clk 0:02:55]} 4. Qe3 {[%clk 0:00:50]}  g6 {[%clk 0:02:55]} 5. Nc3 {[%clk 0:00:50]}  Bg7 {[%clk 0:02:54]} 6. Bd2 {[%clk 0:00:51]}  d6 {[%clk 0:02:54]} 7. O-O-O {[%clk 0:00:52]}  Be6 {[%clk 0:02:54]} 8. Nge2 {[%clk 0:00:51]}  Nf6 {[%clk 0:02:54]} 9. f3 {[%clk 0:00:51]}  O-O {[%clk 0:02:53]} 10. Nf4 {[%clk 0:00:52]}  Rc8 {[%clk 0:02:51]} 11. h4 {[%clk 0:00:52]}  Qa5 {[%clk 0:02:46]} 12. Nxe6 {[%clk 0:00:37]}  fxe6 {[%clk 0:02:46]} 13. Bc4 {[%clk 0:00:38]}  Kh8 {[%clk 0:02:10]} 14. Bxe6 {[%clk 0:00:37]}  Rb8 {[%clk 0:02:02]} 15. h5 {[%clk 0:00:30]}  Nxh5 {[%clk 0:01:58]} 16. g4 {[%clk 0:00:28]}  Nf4 {[%clk 0:01:58]} 17. Bb3 {[%clk 0:00:20]}  Nd4 {[%clk 0:01:46]} 18. Nd5 {[%clk 0:00:15]}  Nxb3+ {[%clk 0:01:38]} 19. Qxb3 {[%clk 0:00:15]}  Ne2+ {[%clk 0:01:24]} 20. Kb1 {[%clk 0:00:15]}  Qc5 {[%clk 0:01:14]} 21. Rxh7+ {[%clk 0:00:12]}  Kxh7 {[%clk 0:01:14]} 22. Rh1+ {[%clk 0:00:12]}  Bh6 {[%clk 0:01:13]} 23. Bxh6 {[%clk 0:00:13]}  Rh8 {[%clk 0:00:43]} 24. Bf8+ {[%clk 0:00:11]}  Kg8 {[%clk 0:00:37]} 25. Nf6+ {[%clk 0:00:02]}  Kxf8 {[%clk 0:00:37]} 26. Rxh8+ {[%clk 0:00:03]}  Kg7 {[%clk 0:00:34]} 27. Rh7+ {[%clk 0:00:00]}  Kxf6 {[%clk 0:00:32]} 0-1


[Site "https://www.chess.com"]

[Event "Titled Tuesday Blitz August 1 Late 2023"]
[White "Tologon tegin, Semetei"]
[Black "Cheng, Xiao"]
[WhiteFideId "13800574"]
[BlackFideId "2022915"]
[WhiteElo "2605"]
[BlackElo "2487"]
[Result "1-0"]
[Round "9"]
[TimeControl "180+1"]
[Date "2023.08.01"]
[WhiteClock "0:01:34"]
[BlackClock "0:01:33"]
[Board "42"]

1. e4 {[%clk 0:02:43]}  c5 {[%clk 0:02:57]} 2. Nf3 {[%clk 0:02:41]}  e6 {[%clk 0:02:56]} 3. d4 {[%clk 0:02:42]}  cxd4 {[%clk 0:02:57]} 4. Nxd4 {[%clk 0:02:43]}  d6 {[%clk 0:02:57]} 5. Nc3 {[%clk 0:02:43]}  a6 {[%clk 0:02:57]} 6. a4 {[%clk 0:02:42]}  Nf6 {[%clk 0:02:55]} 7. Be2 {[%clk 0:02:39]}  Be7 {[%clk 0:02:55]} 8. O-O {[%clk 0:02:39]}  O-O {[%clk 0:02:53]} 9. Be3 {[%clk 0:02:38]}  Nc6 {[%clk 0:02:54]} 10. Nb3 {[%clk 0:02:38]}  Qc7 {[%clk 0:02:49]} 11. a5 {[%clk 0:02:37]}  Nd7 {[%clk 0:02:47]} 12. f4 {[%clk 0:02:36]}  Nc5 {[%clk 0:02:47]} 13. Nxc5 {[%clk 0:02:22]}  dxc5 {[%clk 0:02:47]} 14. e5 {[%clk 0:02:21]}  Rd8 {[%clk 0:02:47]} 15. Qe1 {[%clk 0:02:21]}  Nd4 {[%clk 0:02:47]} 16. Bd3 {[%clk 0:02:19]}  c4 {[%clk 0:02:45]} 17. Be4 {[%clk 0:02:18]}  Bc5 {[%clk 0:02:44]} 18. Kh1 {[%clk 0:02:17]}  Bd7 {[%clk 0:02:41]} 19. Rd1 {[%clk 0:02:08]}  Bc6 {[%clk 0:02:40]} 20. Qf2 {[%clk 0:02:05]}  g6 {[%clk 0:02:38]} 21. Bxd4 {[%clk 0:02:03]}  Bxd4 {[%clk 0:02:27]} 22. Rxd4 {[%clk 0:02:04]}  Qxa5 {[%clk 0:02:27]} 23. Bxc6 {[%clk 0:02:01]}  bxc6 {[%clk 0:02:28]} 24. Rxc4 {[%clk 0:02:00]}  Rab8 {[%clk 0:02:26]} 25. b3 {[%clk 0:01:58]}  Qa3 {[%clk 0:02:14]} 26. Ne4 {[%clk 0:01:56]}  h5 {[%clk 0:02:00]} 27. h3 {[%clk 0:01:55]}  Rb4 {[%clk 0:01:57]} 28. Nf6+ {[%clk 0:01:53]}  Kg7 {[%clk 0:01:56]} 29. Rxc6 {[%clk 0:01:54]}  Qb2 {[%clk 0:01:51]} 30. Rxe6 {[%clk 0:01:50]}  fxe6 {[%clk 0:01:47]} 31. Qa7+ {[%clk 0:01:49]}  Kf8 {[%clk 0:01:46]} 32. Qc5+ {[%clk 0:01:35]}  Kf7 {[%clk 0:01:41]} 33. Qc7+ {[%clk 0:01:34]}  Kf8 {[%clk 0:01:33]} 34. Qxd8+ {[%clk 0:01:34]} 1-0


[Site "https://www.chess.com"]

[Event "Titled Tuesday Blitz August 1 Late 2023"]
[White "Domingo Nunez, Ruben"]
[Black "Pesotskiy, Mikhail"]
[WhiteFideId "22245570"]
[BlackFideId "34164453"]
[WhiteElo "2579"]
[BlackElo "2435"]
[Result "1-0"]
[Round "9"]
[TimeControl "180+1"]
[Date "2023.08.01"]
[WhiteClock "0:00:58"]
[BlackClock "0:00:21"]
[Board "44"]

1. b3 {[%clk 0:02:53]}  e5 {[%clk 0:02:57]} 2. Bb2 {[%clk 0:02:54]}  Nc6 {[%clk 0:02:58]} 3. e3 {[%clk 0:02:53]}  Nf6 {[%clk 0:02:57]} 4. Bb5 {[%clk 0:02:54]}  Bd6 {[%clk 0:02:54]} 5. Nf3 {[%clk 0:02:53]}  Qe7 {[%clk 0:02:55]} 6. d4 {[%clk 0:02:51]}  exd4 {[%clk 0:02:54]} 7. Nxd4 {[%clk 0:02:50]}  Nxd4 {[%clk 0:02:53]} 8. Qxd4 {[%clk 0:02:51]}  O-O {[%clk 0:02:54]} 9. Bd3 {[%clk 0:02:51]}  Re8 {[%clk 0:02:52]} 10. Qh4 {[%clk 0:02:50]}  Be5 {[%clk 0:02:52]} 11. Nc3 {[%clk 0:02:50]}  d6 {[%clk 0:02:31]} 12. Nd5 {[%clk 0:02:44]}  Qe6 {[%clk 0:02:11]} 13. Nxc7 {[%clk 0:02:29]}  Bxb2 {[%clk 0:02:03]} 14. Nxe6 {[%clk 0:02:29]}  Bxa1 {[%clk 0:02:03]} 15. Nc7 {[%clk 0:02:29]}  Bc3+ {[%clk 0:01:56]} 16. Ke2 {[%clk 0:02:21]}  Be6 {[%clk 0:01:55]} 17. Nxa8 {[%clk 0:02:21]}  Rxa8 {[%clk 0:01:55]} 18. Rd1 {[%clk 0:02:16]}  Rc8 {[%clk 0:01:52]} 19. h3 {[%clk 0:02:13]}  a6 {[%clk 0:01:32]} 20. g4 {[%clk 0:02:04]}  h6 {[%clk 0:01:30]} 21. f4 {[%clk 0:01:56]}  d5 {[%clk 0:00:54]} 22. g5 {[%clk 0:01:49]}  hxg5 {[%clk 0:00:55]} 23. fxg5 {[%clk 0:01:49]}  Ne4 {[%clk 0:00:55]} 24. Bxe4 {[%clk 0:01:48]}  dxe4 {[%clk 0:00:56]} 25. Qxe4 {[%clk 0:01:48]}  b5 {[%clk 0:00:51]} 26. g6 {[%clk 0:01:38]}  Bf6 {[%clk 0:00:43]} 27. Rd6 {[%clk 0:01:35]}  Bxh3 {[%clk 0:00:33]} 28. gxf7+ {[%clk 0:01:22]}  Kxf7 {[%clk 0:00:21]} 29. Rxf6+ {[%clk 0:00:58]} 1-0


[Site "https://www.chess.com"]

[Event "Titled Tuesday Blitz August 1 Late 2023"]
[White "Ganiev, Roman"]
[Black "Bochnicka, Vladimir"]
[WhiteFideId "4131452"]
[BlackFideId "14943450"]
[WhiteElo "2593"]
[BlackElo "2522"]
[Result "1-0"]
[Round "9"]
[TimeControl "180+1"]
[Date "2023.08.01"]
[WhiteClock "0:00:13"]
[BlackClock "0:00:02"]
[Board "47"]

1. e4 {[%clk 0:03:00]}  e5 {[%clk 0:02:58]} 2. d4 {[%clk 0:02:59]}  exd4 {[%clk 0:02:58]} 3. Qxd4 {[%clk 0:03:00]}  Nc6 {[%clk 0:02:58]} 4. Qe3 {[%clk 0:03:00]}  d6 {[%clk 0:02:53]} 5. Nc3 {[%clk 0:03:01]}  Nf6 {[%clk 0:02:53]} 6. Bd2 {[%clk 0:02:59]}  Be7 {[%clk 0:02:53]} 7. O-O-O {[%clk 0:02:58]}  O-O {[%clk 0:02:53]} 8. Bc4 {[%clk 0:02:58]}  a6 {[%clk 0:02:52]} 9. Bb3 {[%clk 0:02:58]}  Re8 {[%clk 0:02:48]} 10. Qg3 {[%clk 0:02:53]}  Nd4 {[%clk 0:02:31]} 11. f3 {[%clk 0:02:46]}  Nxb3+ {[%clk 0:02:27]} 12. axb3 {[%clk 0:02:41]}  b5 {[%clk 0:01:54]} 13. Nh3 {[%clk 0:02:32]}  Nh5 {[%clk 0:01:49]} 14. Qf2 {[%clk 0:02:30]}  Bxh3 {[%clk 0:01:46]} 15. gxh3 {[%clk 0:02:30]}  b4 {[%clk 0:01:18]} 16. Nd5 {[%clk 0:02:29]}  c6 {[%clk 0:01:14]} 17. Nxb4 {[%clk 0:02:26]}  Qc7 {[%clk 0:01:02]} 18. Nd3 {[%clk 0:02:20]}  a5 {[%clk 0:01:02]} 19. Bc3 {[%clk 0:02:07]}  a4 {[%clk 0:00:57]} 20. Rhg1 {[%clk 0:02:07]}  axb3 {[%clk 0:00:50]} 21. cxb3 {[%clk 0:02:08]}  d5 {[%clk 0:00:41]} 22. Qg2 {[%clk 0:01:49]}  g6 {[%clk 0:00:29]} 23. Qg4 {[%clk 0:01:48]}  Kf8 {[%clk 0:00:23]} 24. Ne5 {[%clk 0:00:48]}  Bc5 {[%clk 0:00:14]} 25. Nd7+ {[%clk 0:00:29]}  Kg8 {[%clk 0:00:06]} 26. Nxc5 {[%clk 0:00:29]}  Kf8 {[%clk 0:00:03]} 27. Qg5 {[%clk 0:00:27]}  Qd6 {[%clk 0:00:01]} 28. Nd3 {[%clk 0:00:22]}  Qxh2 {[%clk 0:00:02]} 29. Rg2 {[%clk 0:00:20]}  Qc7 {[%clk 0:00:02]} 30. Qh6+ {[%clk 0:00:18]}  Ke7 {[%clk 0:00:02]} 31. Qe3 {[%clk 0:00:15]}  Red8 {[%clk 0:00:02]} 32. exd5+ {[%clk 0:00:15]}  Kf8 {[%clk 0:00:02]} 33. Qd4 {[%clk 0:00:13]}  Kg8 {[%clk 0:00:02]} 34. Qh8# {[%clk 0:00:13]} 1-0


[Site "https://www.chess.com"]